bitfinex/quotes_BTCUSD_20241216
["timestamp","ask_amount","ask_price","bid_price","bid_amount"]
[1734361235524,0.15565268,105350.0,105320.0,0.15094921]
[1734361235945,0.15565268,105350.0,105330.0,0.023]
[1734361236396,0.0942907,105340.0,105320.0,0.15]
[1734361236788,0.0751,105320.0,105310.0,0.47479]
[1734361236956,0.1693907,105320.0,105310.0,0.47479]
[1734361237567,0.1693907,105320.0,105290.0,0.01482068]
[1734361237762,0.0455,105300.0,105290.0,0.01482068]
[1734361237963,0.2192907,105300.0,105290.0,0.01482068]
[1734361238196,0.125,105300.0,105290.0,0.01482068]
[1734361238397,0.125,105320.0,105290.0,0.10911138]
[1734361238574,0.2192907,105320.0,105290.0,0.01482068]
[1734361238775,0.2192907,105320.0,105270.0,0.00094949]
[1734361238969,0.1737907,105320.0,105270.0,0.36748734]
[1734361239196,0.1737907,105320.0,105270.0,0.20377961]
[1734361239395,0.0942907,105310.0,105280.0,0.15]
[1734361239604,0.1425907,105310.0,105270.0,0.00016815]
[1734361240377,0.0765,105300.0,105270.0,0.00016815]
[1734361240602,0.0942907,105290.0,105270.0,0.00016815]
[1734361241413,0.0765,105300.0,105270.0,0.00016815]
[1734361241667,0.1707907,105300.0,105270.0,0.00016815]
[1734361241898,0.0765,105300.0,105280.0,0.173]
[1734361242102,0.0483,105310.0,105280.0,0.17394964]
[1734361242315,0.1425907,105310.0,105280.0,0.17394964]
[1734361243089,0.1425907,105310.0,105280.0,0.18877126]
[1734361243298,0.1425907,105310.0,105280.0,0.20043299]
[1734361243498,0.0942907,105300.0,105280.0,0.023]
[1734361243644,0.0483,105310.0,105270.0,0.02411782]
[1734361243844,0.1425907,105310.0,105280.0,0.00094967]
[1734361244052,0.0942907,105300.0,105270.0,0.02411782]
[1734361244267,0.0942907,105300.0,105270.0,0.02316815]
[1734361244693,0.0942907,105300.0,105270.0,0.05061177]
[1734361245096,0.0483,105310.0,105280.0,0.15094972]
[1734361245301,0.1425907,105310.0,105270.0,0.01686204]
[1734361245537,0.0942907,105300.0,105260.0,0.023]
[1734361245728,0.0942907,105300.0,105270.0,0.00094965]
[1734361246441,0.08304976,105290.0,105250.0,0.01696562]
[1734361246757,0.1402907,105280.0,105250.0,0.01696562]
[1734361246954,0.00094976,105270.0,105250.0,0.01696562]
[1734361247195,0.0942907,105260.0,105250.0,0.01696562]
[1734361248159,0.1697907,105260.0,105250.0,0.0001726]
[1734361248361,0.1697907,105260.0,105250.0,0.00073292]
[1734361248929,0.18686475,105260.0,105250.0,0.00073292]
[1734361249141,0.28626475,105260.0,105250.0,0.00073292]
[1734361249418,0.33626475,105260.0,105250.0,0.00073292]
[1734361250464,0.2191907,105260.0,105250.0,0.00073292]
[1734361251086,0.2691907,105260.0,105250.0,0.00073292]
[1734361251707,0.2191907,105260.0,105250.0,0.00073292]
[1734361252129,0.2691907,105260.0,105250.0,0.00073292]
[1734361252333,0.2191907,105260.0,105250.0,0.00073292]
[1734361252747,0.24610977,105260.0,105250.0,0.00073292]
[1734361252966,0.29610977,105260.0,105250.0,0.00073292]
[1734361253411,0.34610977,105260.0,105250.0,0.00073292]
[1734361253603,0.3191907,105260.0,105250.0,0.00073292]
[1734361253822,0.2191907,105260.0,105250.0,0.00073292]
[1734361254291,0.2691907,105260.0,105250.0,0.00073292]
[1734361254975,0.2191907,105260.0,105250.0,0.00073292]
[1734361256097,0.0942907,105260.0,105250.0,0.00073292]
[1734361256309,0.0783,105280.0,105250.0,0.00986188]
[1734361256579,0.0942907,105270.0,105250.0,0.01081182]
[1734361256794,0.15290347,105320.0,105270.0,0.173]
[1734361256795,0.1,105320.0,105270.0,0.173]
[1734361257046,0.1,105320.0,105290.0,0.15]
[1734361257276,0.1,105320.0,105300.0,0.01007842]
[1734361257523,0.1,105320.0,105310.0,0.15]
[1734361258434,0.10016784,105320.0,105310.0,0.15]
[1734361258653,0.10016784,105320.0,105300.0,0.00912896]
[1734361259092,0.10016784,105320.0,105280.0,0.1606568]
[1734361259289,0.10016784,105320.0,105290.0,0.02394948]
[1734361259493,0.10016784,105320.0,105310.0,0.023]
[1734361259706,0.10016784,105320.0,105310.0,0.27675109]
[1734361259958,0.10016784,105320.0,105310.0,0.2978177]
[1734361260167,0.10016784,105320.0,105310.0,0.4473257]
[1734361260375,0.10016784,105320.0,105310.0,0.2978177]
[1734361260585,0.10016784,105320.0,105310.0,0.4532257]
[1734361260795,0.10016784,105320.0,105310.0,0.2978177]
[1734361261020,0.10016784,105320.0,105310.0,0.4414037]
[1734361261232,0.10016784,105320.0,105310.0,0.46777557]
[1734361261849,0.10016784,105320.0,105310.0,0.51777557]
[1734361262472,0.10016784,105320.0,105310.0,0.64557557]
[1734361263091,0.10016784,105320.0,105310.0,0.67756389]
[1734361265179,0.10016784,105320.0,105310.0,0.30680602]
[1734361265419,0.10016784,105320.0,105310.0,0.2748177]
[1734361265932,0.10025414,105320.0,105310.0,0.2748177]
[1734361267509,0.10025414,105320.0,105310.0,0.2978177]
[1734361267952,0.10025414,105320.0,105310.0,0.00851106]
[1734361268382,0.10025414,105320.0,105310.0,0.10280176]
[1734361268605,0.10025414,105320.0,105310.0,0.10375117]
[1734361268823,0.10025414,105320.0,105310.0,0.00851106]
[1734361269044,0.08543981,105320.0,105310.0,0.63758529]
[1734361269256,0.08039525,105320.0,105310.0,0.83662796]
[1734361269465,0.07339525,105320.0,105310.0,1.48589796]
[1734361269680,0.07339525,105320.0,105310.0,1.43589796]
[1734361269881,0.07339525,105320.0,105310.0,0.93797796]
[1734361270125,0.07339525,105320.0,105310.0,1.11273596]
[1734361270362,0.07339525,105320.0,105310.0,0.47477]
[1734361271773,0.07339525,105320.0,105310.0,0.62477]
[1734361272001,0.16768595,105320.0,105310.0,0.47477]
[1734361272253,0.07339525,105320.0,105310.0,0.47477]
[1734361272947,0.29388595,105320.0,105310.0,0.47477]
[1734361273583,0.05,105310.0,105290.0,0.0148198]
[1734361273803,0.05,105310.0,105280.0,0.00985904]
[1734361273804,0.0942907,105300.0,105260.0,0.0001726]
[1734361274005,0.1745907,105290.0,105260.0,0.0001726]
[1734361274220,0.19704977,105290.0,105260.0,0.0001726]
[1734361274445,0.0472,105280.0,105260.0,0.0001726]
[1734361274661,0.0942907,105270.0,105260.0,0.0001726]
[1734361275535,0.0942907,105270.0,105260.0,0.015002]
[1734361277444,0.0942907,105270.0,105260.0,0.0001726]
[1734361277655,0.0942907,105270.0,105260.0,0.16500172]
[1734361277871,0.0942907,105270.0,105260.0,0.01500172]
[1734361278293,0.0942907,105270.0,105260.0,0.16500172]
[1734361278500,0.0942907,105270.0,105260.0,0.01500172]
[1734361279017,0.1233,105310.0,105260.0,0.0468679]
[1734361279273,0.1233,105310.0,105260.0,0.1411586]
[1734361279274,0.00016775,105290.0,105260.0,0.1411586]
[1734361279491,0.09445845,105290.0,105270.0,0.15]
[1734361280352,0.09445845,105290.0,105260.0,0.00112245]
[1734361280586,0.0942907,105280.0,105260.0,0.0001726]
[1734361281000,0.0942907,105270.0,105260.0,0.0001726]
[1734361282886,0.0942907,105270.0,105210.0,0.04398606]
[1734361283120,0.00095009,105260.0,105220.0,0.1172907]
[1734361283307,0.0942907,105260.0,105220.0,0.09524079]
[1734361283519,0.0822,105280.0,105230.0,0.0942907]
[1734361283729,0.09524079,105270.0,105230.0,0.09524072]
[1734361284152,0.09524079,105270.0,105230.0,0.00095002]
[1734361284369,0.09524079,105270.0,105210.0,0.05384706]
[1734361284370,0.09524079,105270.0,105220.0,0.00095009]
[1734361284583,0.09524079,105270.0,105220.0,0.24524079]
[1734361284789,0.0942907,105270.0,105230.0,0.2442907]
[1734361284996,0.0942907,105270.0,105240.0,0.00094996]
[1734361285199,0.0942907,105270.0,105240.0,0.02394996]
[1734361285414,0.0942907,105270.0,105240.0,0.17394996]
[1734361286287,0.0942907,105270.0,105240.0,0.16894996]
[1734361286695,0.0942907,105270.0,105230.0,0.2442907]
[1734361287181,0.11203478,105270.0,105230.0,0.2442907]
[1734361287422,0.00118762,105260.0,105220.0,0.24212858]
[1734361287891,0.09547834,105260.0,105220.0,0.33641928]
[1734361287892,0.0822,105280.0,105230.0,0.2442907]
[1734361288133,0.1764907,105280.0,105230.0,0.24476593]
[1734361288365,0.1764907,105280.0,105240.0,0.173]
[1734361289633,0.0942907,105270.0,105220.0,0.2319053]
[1734361289877,0.09547811,105270.0,105220.0,0.01500133]
[1734361290096,0.09547811,105270.0,105230.0,0.00047524]
[1734361290310,0.09547811,105270.0,105220.0,0.00064785]
[1734361291200,0.09547835,105260.0,105220.0,0.0001726]
[1734361291436,0.0769,105250.0,105220.0,0.0001726]
[1734361291648,0.09547854,105240.0,105220.0,0.0001726]
[1734361292744,0.09547854,105240.0,105220.0,0.00073292]
[1734361294487,0.0769,105250.0,105220.0,0.00073292]
[1734361294735,0.0802,105270.0,105220.0,0.24502362]
[1734361294952,0.0942907,105260.0,105220.0,0.24549876]
[1734361295167,0.1744907,105270.0,105240.0,0.15]
[1734361295416,0.09547817,105260.0,105240.0,0.15]
[1734361295846,0.0942907,105260.0,105240.0,0.15]
[1734361296270,0.0942907,105260.0,105230.0,0.00047516]
[1734361297340,0.0491,105290.0,105240.0,0.15]
[1734361297557,0.09547813,105280.0,105240.0,0.2442907]
[1734361297774,0.1753907,105290.0,105260.0,0.15]
[1734361298210,0.0942907,105290.0,105260.0,0.15]
[1734361299098,0.10388752,105290.0,105250.0,0.2442907]
[1734361299324,0.0942907,105280.0,105250.0,0.17643245]
[1734361299550,0.00118746,105270.0,105230.0,0.03782528]
[1734361299772,0.09547816,105270.0,105230.0,0.15855951]
[1734361299973,0.09547816,105270.0,105230.0,0.1172907]
[1734361300416,0.11296598,105270.0,105230.0,0.14375628]
[1734361300629,0.0942907,105260.0,105220.0,0.13255186]
[1734361300850,0.0942907,105260.0,105230.0,0.15047518]
[1734361301278,0.0942907,105260.0,105230.0,0.00047518]
[1734361301487,0.0942907,105260.0,105220.0,0.0001726]
[1734361301704,0.00118768,105270.0,105230.0,0.0942907]
[1734361301927,0.09547838,105270.0,105230.0,0.0942907]
[1734361302143,0.09547838,105270.0,105220.0,0.00064791]
[1734361302144,0.0942907,105260.0,105220.0,0.00064791]
[1734361302372,0.00118768,105270.0,105230.0,0.0942907]
[1734361302595,0.00118768,105270.0,105230.0,0.27077928]
[1734361302596,0.0942907,105270.0,105230.0,0.27077928]
[1734361306264,0.09547813,105260.0,105230.0,0.02648858]
[1734361306482,0.00118765,105250.0,105230.0,0.02648858]
[1734361306691,0.09547835,105250.0,105220.0,0.02713643]
[1734361306941,0.10502619,105250.0,105220.0,0.02713643]
[1734361307365,0.09547835,105250.0,105220.0,0.02713643]
[1734361307797,0.0942907,105240.0,105220.0,0.02769675]
[1734361308254,0.0942907,105240.0,105220.0,0.0272215]
[1734361308255,0.00118777,105230.0,105220.0,0.0272215]
[1734361308472,0.09547847,105230.0,105220.0,0.0272215]
[1734361308895,0.09547847,105230.0,105220.0,0.00073292]
[1734361309112,0.10502632,105230.0,105220.0,0.00073292]
[1734361310421,0.23352632,105230.0,105220.0,0.00073292]
[1734361310635,0.23233855,105230.0,105220.0,0.00073292]
[1734361310889,0.2227907,105230.0,105220.0,0.00073292]
[1734361311100,0.0806,105210.0,105200.0,0.0001724]
[1734361311313,0.22607916,105210.0,105200.0,0.00034059]
[1734361311544,0.2248907,105210.0,105200.0,0.00034059]
[1734361311775,0.0964,105200.0,105190.0,0.0001724]
[1734361311990,0.14187922,105200.0,105190.0,0.0001724]
[1734361313525,0.19187922,105200.0,105190.0,0.1501724]
[1734361313746,0.14187922,105200.0,105190.0,0.0001724]
[1734361313960,0.22387922,105200.0,105190.0,0.0001724]
[1734361314188,0.22387922,105200.0,105180.0,0.01500834]
[1734361314189,0.27402144,105200.0,105180.0,0.0001724]
[1734361314404,0.17357946,105190.0,105180.0,0.00034059]
[1734361314637,0.1723907,105190.0,105180.0,0.00034059]
[1734361315696,0.22357935,105190.0,105180.0,0.00034059]
[1734361315906,0.2223907,105190.0,105180.0,0.00034059]
[1734361317189,0.25426977,105190.0,105180.0,0.00034059]
[1734361318215,0.2223907,105190.0,105180.0,0.00034059]
[1734361319154,0.1723907,105190.0,105180.0,0.00034059]
[1734361319371,0.17357934,105190.0,105180.0,0.00034059]
[1734361319586,0.17357934,105190.0,105180.0,0.15034059]
[1734361320048,0.22357934,105190.0,105180.0,0.15034059]
[1734361320268,0.1723907,105190.0,105180.0,0.15034059]
[1734361320484,0.17357927,105190.0,105180.0,0.15034059]
[1734361320707,0.0942907,105190.0,105180.0,0.00034059]
[1734361320925,5e-05,105200.0,105180.0,0.00034059]
[1734361321154,0.0942907,105190.0,105180.0,0.00034059]
[1734361321600,5e-05,105200.0,105180.0,0.00081731]
[1734361321836,5e-05,105200.0,105180.0,0.02381673]
[1734361322283,0.0943407,105200.0,105190.0,0.15]
[1734361322515,0.10377477,105200.0,105190.0,0.15]
[1734361322729,0.0943407,105200.0,105190.0,0.15]
[1734361323174,0.0943407,105200.0,105180.0,0.00034059]
[1734361324085,0.09547902,105190.0,105180.0,0.00034059]
[1734361325224,0.0942907,105190.0,105180.0,0.00034059]
[1734361325442,0.09547922,105190.0,105180.0,0.00034059]
[1734361325902,0.11790214,105190.0,105180.0,0.00034059]
[1734361326120,0.16790214,105190.0,105180.0,0.00034059]
[1734361326344,0.11790214,105190.0,105180.0,0.00034059]
[1734361326566,0.05,105180.0,105170.0,0.0001724]
[1734361326792,0.1282,105170.0,105160.0,0.01793158]
[1734361327024,0.05,105160.0,105150.0,0.0001724]
[1734361327269,0.09547979,105160.0,105150.0,0.0001724]
[1734361327498,0.14547979,105160.0,105140.0,0.0001726]
[1734361327727,0.19087993,105150.0,105140.0,0.0001726]
[1734361327948,0.14087993,105150.0,105140.0,0.0001726]
[1734361328172,0.15496792,105150.0,105140.0,0.0001726]
[1734361328398,0.0773,105140.0,105130.0,0.0001728]
[1734361328619,0.2215907,105140.0,105130.0,0.0001728]
[1734361328844,0.1,105130.0,105120.0,0.0001728]
[1734361329106,0.1442907,105130.0,105120.0,0.0001728]
[1734361329333,0.05,105120.0,105110.0,0.0011726]
[1734361329553,0.1442907,105120.0,105110.0,0.0011726]
[1734361329779,0.14548032,105120.0,105110.0,0.0011726]
[1734361331132,0.1454146,105120.0,105110.0,0.0011726]
[1734361331561,0.14422498,105120.0,105110.0,0.0011726]
[1734361331775,0.14541464,105120.0,105110.0,0.0011726]
[1734361332210,0.09541464,105120.0,105110.0,0.0011726]
[1734361332430,0.09422498,105120.0,105110.0,0.0011726]
[1734361332644,0.00174803,105130.0,105110.0,0.0011726]
[1734361332927,0.0942907,105120.0,105110.0,0.0011726]
[1734361333138,0.10377565,105120.0,105110.0,0.1511726]
[1734361333363,0.10377565,105120.0,105110.0,0.0011726]
[1734361333364,0.0942907,105120.0,105110.0,0.0011726]
[1734361333609,0.1721907,105120.0,105110.0,0.01602269]
[1734361333863,0.27338021,105120.0,105110.0,0.16602269]
[1734361334184,0.2451907,105120.0,105110.0,0.16602269]
[1734361334422,0.1721907,105120.0,105110.0,0.16602269]
[1734361334634,0.1956551,105120.0,105110.0,0.0011726]
[1734361334839,0.17338015,105120.0,105110.0,0.0001726]
[1734361335904,0.22338022,105120.0,105110.0,0.0001726]
[1734361336196,0.1721907,105120.0,105110.0,0.0001726]
[1734361336437,0.2451907,105120.0,105110.0,0.0001726]
[1734361336690,0.2951907,105120.0,105110.0,0.0001726]
[1734361336946,0.25176565,105120.0,105110.0,0.0001726]
[1734361337645,0.27476565,105120.0,105110.0,0.0001726]
[1734361338328,0.22476565,105120.0,105110.0,0.0001726]
[1734361338537,0.22476565,105120.0,105110.0,0.01502655]
[1734361338991,0.2221907,105120.0,105110.0,0.01502655]
[1734361339208,0.1721907,105120.0,105110.0,0.01502655]
[1734361339416,0.1721907,105120.0,105110.0,0.0001726]
[1734361339631,0.09548013,105120.0,105110.0,0.1501726]
[1734361339839,0.09548013,105120.0,105110.0,0.0001726]
[1734361339840,0.0942907,105120.0,105110.0,0.0001726]
[1734361340059,0.15389458,105120.0,105110.0,0.0001726]
[1734361340265,0.1442907,105120.0,105110.0,0.0001726]
[1734361341197,0.1442907,105120.0,105110.0,0.0150244]
[1734361341475,0.1942907,105120.0,105110.0,0.0150244]
[1734361342158,0.14548023,105120.0,105110.0,0.0150244]
[1734361342367,0.09548018,105120.0,105110.0,0.0150244]
[1734361342613,0.16008393,105120.0,105110.0,0.0150244]
[1734361342864,0.14548003,105120.0,105110.0,0.1650244]
[1734361343287,0.0942907,105120.0,105110.0,0.0150244]
[1734361343498,0.14548008,105120.0,105110.0,0.0150244]
[1734361343931,0.14548008,105120.0,105110.0,0.1650244]
[1734361344614,0.14548008,105120.0,105110.0,0.0150244]
[1734361345046,0.11848037,105120.0,105110.0,0.0150244]
[1734361345281,0.19698037,105120.0,105110.0,0.0150244]
[1734361345502,0.19698037,105120.0,105110.0,0.0001726]
[1734361345970,0.023,105110.0,105100.0,0.0001728]
[1734361346197,0.1452086,105110.0,105100.0,0.0001728]
[1734361346424,0.1,105080.0,105060.0,0.001]
[1734361346690,0.0954807,105070.0,105060.0,0.001]
[1734361347186,0.09548069,105070.0,105060.0,0.01585695]
[1734361347413,0.0942907,105070.0,105060.0,0.01585695]
[1734361347854,0.0942907,105070.0,105060.0,0.01602492]
[1734361348074,0.03375684,105060.0,105040.0,0.15]
[1734361348359,0.03375684,105080.0,105040.0,0.09445906]
[1734361348583,0.03375684,105080.0,105060.0,0.16485529]
[1734361348813,0.03375684,105080.0,105060.0,0.15]
[1734361349363,0.08375684,105090.0,105060.0,0.15]
[1734361349628,0.17804754,105090.0,105050.0,0.023]
[1734361349865,0.03375684,105060.0,105040.0,0.01519551]
[1734361350117,0.08375684,105050.0,105040.0,0.01519551]
[1734361351041,0.1442907,105050.0,105040.0,0.01519551]
[1734361351312,0.1454806,105050.0,105040.0,0.01519551]
[1734361351532,0.03375684,105060.0,105040.0,0.01519551]
[1734361351761,0.08375684,105050.0,105040.0,0.01519551]
[1734361352435,0.12804754,105050.0,105040.0,0.01519551]
[1734361352660,0.03375684,105060.0,105040.0,0.01519551]
[1734361354399,0.03375684,105070.0,105050.0,0.023]
[1734361354609,0.08375684,105070.0,105050.0,0.023]
[1734361354825,0.03375684,105070.0,105050.0,0.023]
[1734361355041,0.08375684,105070.0,105050.0,0.023]
[1734361355254,0.03375684,105080.0,105050.0,0.023]
[1734361355470,0.03375684,105080.0,105060.0,0.15]
[1734361356590,0.0942907,105070.0,105060.0,0.15]
[1734361356839,0.03375684,105070.0,105060.0,0.15]
[1734361358156,0.03375684,105080.0,105060.0,0.15]
[1734361358373,0.08375684,105080.0,105060.0,0.15]
[1734361358588,0.03375684,105070.0,105060.0,0.15]
[1734361359006,0.1442907,105070.0,105060.0,0.15]
[1734361359219,0.0942907,105070.0,105060.0,0.15]
[1734361359441,0.05,105080.0,105060.0,0.15]
[1734361359442,0.08375684,105080.0,105060.0,0.15]
[1734361359655,0.03375684,105070.0,105060.0,0.15]
[1734361360318,0.12804754,105070.0,105060.0,0.15]
[1734361360531,0.03375684,105060.0,105050.0,0.0496]
[1734361360751,0.03375684,105060.0,105030.0,0.24805295]
[1734361360964,0.03375684,105060.0,105030.0,0.36922584]
[1734361361939,0.03375684,105060.0,105040.0,0.023]
[1734361362185,0.03375684,105060.0,105040.0,0.04971371]
[1734361362938,0.03375684,105060.0,105040.0,0.19971371]
[1734361363434,0.03375684,105060.0,105050.0,0.02288424]
[1734361363662,8.66e-05,105070.0,105060.0,0.173]
[1734361363893,8.66e-05,105070.0,105060.0,0.39968865]
[1734361364599,0.0991865,105120.0,105060.0,0.39968865]
[1734361364600,0.01947982,105120.0,105080.0,0.173]
[1734361364867,0.01947982,105120.0,105100.0,0.173]
[1734361365094,0.01947982,105120.0,105100.0,0.19971371]
[1734361365747,8.65e-05,105120.0,105110.0,0.04588424]
[1734361365963,0.00064551,105120.0,105110.0,0.07259795]
[1734361366415,0.09493621,105120.0,105100.0,0.15]
[1734361366639,0.01939332,105110.0,105100.0,0.02669332]
[1734361366865,0.01939332,105110.0,105090.0,0.04969332]
[1734361368420,0.02003883,105120.0,105100.0,0.15]
[1734361368638,0.02003883,105120.0,105100.0,0.20458521]
[1734361368859,0.02003883,105120.0,105100.0,0.17669332]
[1734361369071,0.00064551,105120.0,105110.0,0.023]
[1734361369290,0.00064551,105120.0,105110.0,0.32187591]
[1734361369516,0.00064551,105120.0,105110.0,0.97529091]
[1734361369978,0.00064551,105120.0,105110.0,1.02239091]
[1734361370502,0.00064551,105120.0,105110.0,1.38012191]
[1734361370751,0.00064551,105120.0,105110.0,1.26792459]
[1734361371450,0.00064551,105120.0,105110.0,1.10949459]
[1734361372105,0.00064551,105120.0,105110.0,1.40550942]
[1734361373011,0.00064551,105120.0,105110.0,1.37490274]
[1734361373250,0.01939332,105170.0,105130.0,0.023]
[1734361373477,0.01956098,105170.0,105150.0,0.173]
[1734361373909,0.01956098,105170.0,105150.0,0.67506418]
[1734361374143,0.01956098,105170.0,105150.0,0.66640189]
[1734361374364,0.01956098,105170.0,105160.0,0.14518259]
[1734361374365,0.00016766,105170.0,105160.0,0.14518259]
[1734361374577,0.00016766,105170.0,105160.0,0.62065259]
[1734361374798,8.66e-05,105180.0,105170.0,0.067]
[1734361375015,8.66e-05,105180.0,105170.0,1.32180373]
[1734361375229,0.0001364,105200.0,105190.0,0.023]
[1734361375481,0.0001364,105200.0,105190.0,1.02852259]
[1734361375693,0.0001364,105200.0,105190.0,0.96729859]
[1734361375926,0.01947982,105230.0,105190.0,0.99790527]
[1734361376151,0.01947982,105230.0,105210.0,0.023]
[1734361377482,0.00064748,105230.0,105210.0,0.023]
[1734361377701,0.0200408,105230.0,105220.0,0.17788052]
[1734361377911,0.0200408,105230.0,105220.0,0.62519]
[1734361378593,0.0700408,105230.0,105220.0,0.62519]
[1734361378807,0.0200408,105230.0,105220.0,0.62519]
[1734361379239,0.0200408,105230.0,105220.0,0.65307052]
[1734361379688,0.00064748,105230.0,105220.0,0.67607052]
[1734361379901,0.00064748,105230.0,105220.0,0.77036122]
[1734361383266,0.00064748,105230.0,105220.0,1.16953422]
[1734361383522,0.00064748,105230.0,105220.0,1.1951409]
[1734361383955,0.00064748,105230.0,105220.0,1.19589624]
[1734361384177,0.00064748,105230.0,105220.0,1.16528956]
[1734361384628,0.00064748,105230.0,105220.0,1.19589624]
[1734361384875,0.0001364,105250.0,105230.0,0.05360668]
[1734361385095,0.00030461,105250.0,105240.0,1.2098797]
[1734361385328,0.00030461,105250.0,105240.0,1.64888826]
[1734361385749,0.01947982,105280.0,105250.0,0.173]
[1734361385972,8.65e-05,105280.0,105250.0,0.76305226]
[1734361386196,8.65e-05,105280.0,105270.0,0.173]
[1734361386419,8.65e-05,105280.0,105270.0,0.66836716]
[1734361386870,8.65e-05,105280.0,105270.0,0.64536716]
[1734361387101,0.0943772,105280.0,105270.0,0.62497]
[1734361387328,0.14288642,105280.0,105270.0,0.62497]
[1734361387545,0.06939332,105280.0,105270.0,0.62497]
[1734361387766,0.01939332,105280.0,105270.0,0.62497]
[1734361387996,0.06939332,105280.0,105270.0,0.62497]
[1734361389350,0.1442907,105280.0,105270.0,0.62497]
[1734361389570,0.12037681,105280.0,105270.0,0.62497]
[1734361389805,0.12525,105300.0,105270.0,0.74328801]
[1734361389806,5e-05,105300.0,105270.0,0.74328801]
[1734361390049,0.07322741,105320.0,105300.0,0.01477552]
[1734361390279,0.0942907,105310.0,105300.0,0.01477552]
[1734361390514,0.11234801,105310.0,105300.0,0.01477552]
[1734361390735,0.24354801,105310.0,105300.0,0.01477552]
[1734361390950,0.24236119,105310.0,105300.0,0.01477552]
[1734361391168,0.2254907,105310.0,105270.0,0.22664474]
[1734361391388,0.22565882,105310.0,105270.0,0.24325039]
[1734361391825,0.00118708,105300.0,105280.0,0.15]
[1734361392039,0.0942907,105290.0,105280.0,0.15]
[1734361392259,0.13136812,105310.0,105280.0,0.15]
[1734361392476,0.0942907,105300.0,105280.0,0.15]
[1734361392690,0.13136812,105310.0,105280.0,0.89727731]
[1734361392909,0.13136812,105310.0,105290.0,0.02402731]
[1734361392910,0.00016812,105310.0,105290.0,0.02402731]
[1734361393159,0.00016812,105310.0,105300.0,0.15]
[1734361394029,0.00016812,105310.0,105300.0,0.17721104]
[1734361395102,0.00016812,105310.0,105300.0,0.90037104]
[1734361395530,0.09445882,105310.0,105300.0,0.90037104]
[1734361395756,0.09564573,105310.0,105300.0,0.72316]
[1734361396867,0.22504573,105310.0,105300.0,0.72316]
[1734361397095,0.22385882,105310.0,105300.0,0.72316]
[1734361397831,0.27385882,105310.0,105300.0,0.72316]
[1734361398072,0.27385882,105310.0,105300.0,0.87316]
[1734361398321,0.27394522,105310.0,105300.0,0.87316]
[1734361398587,0.22394522,105310.0,105300.0,0.87316]
[1734361399552,0.12965452,105310.0,105300.0,0.87316]
[1734361400930,0.2751322,105310.0,105300.0,0.72316]
[1734361401171,0.22394522,105310.0,105300.0,0.72316]
[1734361402625,0.22394522,105310.0,105300.0,0.87316]
[1734361402626,0.27394522,105310.0,105300.0,0.87316]
[1734361403548,0.22394522,105310.0,105300.0,0.87316]
[1734361404331,0.27394522,105310.0,105300.0,0.87316]
[1734361404596,0.31366248,105310.0,105300.0,0.87316]
[1734361404815,0.27394522,105310.0,105300.0,0.87316]
[1734361405035,0.22394522,105310.0,105300.0,0.89219535]
[1734361405247,0.00025452,105310.0,105300.0,0.89219535]
[1734361406111,0.00025452,105310.0,105300.0,0.87316]
[1734361406337,0.00025452,105310.0,105300.0,0.89219535]
[1734361406816,0.00025452,105310.0,105300.0,1.01964839]
[1734361407275,0.00025452,105310.0,105300.0,1.16971039]
[1734361407495,0.00025452,105310.0,105300.0,1.21971039]
[1734361407710,0.00025452,105310.0,105300.0,0.92706245]
[1734361407923,0.00025452,105310.0,105300.0,1.02135315]
[1734361408593,0.00025452,105310.0,105300.0,1.09582913]
[1734361408806,0.00025452,105310.0,105300.0,1.61251713]
[1734361409017,0.00025452,105310.0,105300.0,1.72047453]
[1734361409447,0.00025452,105310.0,105300.0,1.27541453]
[1734361409863,0.00025452,105310.0,105300.0,1.37558713]
[1734361411587,0.07322741,105320.0,105310.0,0.1]
[1734361411830,0.04023208,105320.0,105310.0,2.31713274]
[1734361412069,0.04023208,105320.0,105310.0,2.16846474]
[1734361412070,0.01601044,105320.0,105310.0,2.16846474]
[1734361412312,0.01601044,105320.0,105310.0,2.14404074]
[1734361412548,8.65e-05,105340.0,105330.0,0.023]
[1734361412782,4.99e-05,105350.0,105330.0,0.9903107]
[1734361413028,0.00060998,105350.0,105330.0,0.9903107]
[1734361413242,0.00060998,105350.0,105340.0,0.05099959]
[1734361413667,0.00060998,105350.0,105340.0,0.92397959]
[1734361414790,0.00060998,105350.0,105340.0,1.01827029]
[1734361415009,0.00060998,105350.0,105340.0,0.92397959]
[1734361415693,0.00060998,105350.0,105340.0,1.01827029]
[1734361416380,0.0001463,105360.0,105350.0,0.173]
[1734361416599,0.00031425,105360.0,105350.0,0.2672907]
[1734361416859,0.00031425,105360.0,105350.0,1.02167836]
[1734361417319,0.00031425,105360.0,105350.0,1.07167836]
[1734361417535,8.64e-05,105390.0,105350.0,1.0981279]
[1734361417764,8.64e-05,105390.0,105370.0,0.173]
[1734361417998,8.64e-05,105390.0,105370.0,0.89584]
[1734361418214,0.00127246,105390.0,105380.0,0.03143147]
[1734361418432,0.09556316,105390.0,105370.0,0.87284]
[1734361418654,0.00127246,105390.0,105380.0,0.8728]
[1734361418867,8.64e-05,105390.0,105380.0,0.90423147]
[1734361419524,8.64e-05,105390.0,105380.0,0.8728]
[1734361419994,8.64e-05,105390.0,105380.0,0.90423147]
[1734361420715,8.64e-05,105390.0,105380.0,0.92723147]
[1734361420934,8.64e-05,105390.0,105380.0,0.90423147]
[1734361422228,8.64e-05,105390.0,105380.0,0.92723147]
[1734361422445,8.64e-05,105390.0,105380.0,0.94527231]
[1734361424128,8.64e-05,105390.0,105380.0,0.89084084]
[1734361424409,0.09556317,105390.0,105380.0,0.89084084]
[1734361424648,8.64e-05,105390.0,105380.0,0.91715384]
[1734361425624,8.64e-05,105390.0,105380.0,0.89084084]
[1734361425871,8.64e-05,105390.0,105380.0,0.91715384]
[1734361426126,8.64e-05,105390.0,105380.0,0.94015384]
[1734361426374,8.64e-05,105390.0,105380.0,0.91384084]
[1734361426634,8.64e-05,105390.0,105380.0,0.94015384]
[1734361427647,8.64e-05,105390.0,105380.0,0.94011384]
[1734361429200,0.0251365,105400.0,105390.0,0.173]
[1734361429412,0.0251365,105400.0,105390.0,0.92721427]
[1734361429685,0.0251365,105400.0,105390.0,1.02150497]
[1734361429897,0.0086821,105400.0,105390.0,1.02150497]
[1734361430541,0.00884999,105400.0,105390.0,1.02150497]
[1734361430983,0.00884999,105400.0,105390.0,1.02729831]
[1734361431411,0.00884999,105400.0,105390.0,1.07729831]
[1734361431629,0.00884999,105400.0,105390.0,1.41470531]
[1734361432080,0.00884999,105400.0,105390.0,1.45257531]
[1734361432521,0.00884999,105400.0,105390.0,1.50257531]
[1734361432735,0.00884999,105400.0,105390.0,1.57887531]
[1734361433390,0.0726228,105450.0,105410.0,0.05]
[1734361433600,0.0726228,105450.0,105430.0,0.15]
[1734361434059,0.0726228,105450.0,105430.0,0.16013352]